bitfinex/quotes_ETHUSD_20251218
["timestamp","ask_amount","ask_price","bid_price","bid_amount"]
[1766083050262,15.56051502,2853.9,2852.1,4.8698]
[1766083050546,0.46438023,2853.7,2852.4,5.68458023]
[1766083050747,0.562,2853.6,2852.1,9.28832762]
[1766083051066,10.46438023,2853.8,2852.6,4.8698]
[1766083051267,0.405504,2853.7,2852.6,4.8698]
[1766083051433,0.405504,2853.7,2852.7,0.3504]
[1766083051656,0.405504,2853.8,2852.8,0.3504]
[1766083052055,0.405504,2853.7,2852.7,4.8698]
[1766083052375,0.74137769,2853.6,2852.6,0.81478023]
[1766083052571,0.74137769,2853.6,2852.6,0.3504]
[1766083052775,0.74137769,2853.6,2852.6,0.9124]
[1766083053280,0.74137769,2853.6,2852.6,0.3504]
[1766083053459,0.74137769,2853.6,2852.3,0.81478023]
[1766083053460,0.967504,2853.5,2852.3,0.81478023]
[1766083053668,4.47201552,2853.5,2852.4,0.562]
[1766083053870,1.52133932,2853.4,2852.4,0.562]
[1766083054765,1.52133932,2853.4,2852.0,0.002]
[1766083054964,1.98571955,2853.4,2852.0,4.8718]
[1766083055269,0.405504,2853.3,2852.2,5.2202]
[1766083055657,0.46438023,2853.1,2852.5,0.002]
[1766083055869,0.39692169,2853.0,2852.5,0.002]
[1766083056283,0.39692169,2853.0,2852.0,0.002]
[1766083056790,0.39692169,2853.0,2852.0,5.2222]
[1766083057088,0.39692169,2853.0,2852.0,0.002]
[1766083057258,0.39692169,2853.0,2852.1,0.562]
[1766083057658,0.39692169,2853.0,2852.2,0.3504]
[1766083057859,0.43663837,2852.9,2852.2,0.3504]
[1766083058276,4.06653858,2853.5,2852.2,4.32084572]
[1766083058486,4.06652244,2853.5,2852.3,0.3504]
[1766083058658,0.562,2853.5,2852.3,0.3504]
[1766083058860,4.06648315,2853.5,2852.4,4.8698]
[1766083059096,4.06648315,2853.5,2852.2,3.97041809]
[1766083059312,0.76444968,2853.4,2852.3,0.562]
[1766083059666,4.26914345,2853.4,2852.3,0.562]
[1766083060166,4.26914345,2853.4,2852.3,0.9124]
[1766083060363,7.77383722,2853.4,2852.3,0.3504]
[1766083060572,0.76444968,2853.4,2852.4,0.562]
[1766083060868,0.5295353,2853.3,2852.4,5.7822]
[1766083062096,3.50468699,2853.4,2852.4,0.9124]
[1766083062599,4.53089304,2853.5,2852.4,0.562]
[1766083062833,8.03540585,2853.5,2852.4,0.9216]
[1766083063008,4.53089304,2853.5,2852.4,0.9216]
[1766083063203,0.8108858,2853.4,2852.4,0.9216]
[1766083063999,3.50471384,2853.3,2852.4,0.9216]
[1766083064196,0.8108858,2853.4,2852.4,0.562]
[1766083064500,4.0665055,2853.5,2852.4,0.562]
[1766083064700,0.46438023,2853.5,2852.4,5.8283]
[1766083064900,0.001,2853.5,2852.6,4.9067]
[1766083065103,0.001,2853.5,2852.7,0.3596]
[1766083065277,0.001,2853.5,2852.7,5.2663]
[1766083065478,1.05233134,2853.5,2852.7,5.2663]
[1766083067622,1.05233134,2853.5,2852.8,0.562]
[1766083067809,4.55682041,2853.5,2852.8,0.562]
[1766083068321,8.06130948,2853.5,2852.3,0.3596]
[1766083068497,1.41456897,2853.4,2852.5,0.562]
[1766083068703,1.41456897,2853.4,2852.1,0.002]
[1766083068704,0.405504,2853.3,2852.1,0.002]
[1766083069012,11.8789492,2853.4,2852.2,4.9067]
[1766083069190,1.8789492,2853.4,2852.4,4.9067]
[1766083070294,3.50471384,2853.3,2852.4,4.9067]
[1766083070494,0.5383663,2853.2,2852.2,0.3596]
[1766083071324,0.5383663,2853.2,2852.1,4.9087]
[1766083071510,0.5383663,2853.2,2852.1,0.002]
[1766083072304,3.50495951,2853.1,2852.1,0.002]
[1766083072507,0.562,2853.0,2852.1,0.002]
[1766083072838,0.40669595,2852.9,2852.1,0.002]
[1766083073012,0.40669595,2852.9,2852.0,0.002]
[1766083073908,0.40669595,2852.9,2852.1,0.002]
[1766083074501,3.91191572,2852.9,2852.1,0.002]
[1766083075601,0.40669595,2852.9,2852.1,0.002]
[1766083075798,0.40669595,2852.9,2852.1,0.3616]
[1766083075999,6.47,2853.0,2852.5,0.3596]
[1766083076209,9.97509566,2853.0,2852.1,0.002]
[1766083076409,1.3045,2852.8,2852.1,0.002]
[1766083076610,1.3007,2852.8,2852.1,0.002]
[1766083076814,1.3007,2852.7,2852.1,0.002]
[1766083077011,0.48060698,2852.6,2852.0,0.002]
[1766083077209,0.48060698,2852.6,2851.0,0.002]
[1766083077210,0.562,2852.5,2851.0,0.002]
[1766083077420,0.562,2852.5,2851.6,7.01357999]
[1766083077619,0.562,2852.8,2851.6,7.57557999]
[1766083078029,0.562,2852.8,2851.6,4.0687768]
[1766083078208,1.2929,2852.6,2851.8,0.3596]
[1766083078414,1.2929,2852.6,2851.7,0.40687768]
[1766083078727,1.75358023,2852.5,2851.6,4.0687768]
[1766083078900,1.2892,2852.5,2851.6,4.0687768]
[1766083079097,1.2892,2852.4,2851.5,0.9216]
[1766083079303,1.2892,2852.4,2851.6,5.2663]
[1766083079505,1.2892,2852.4,2851.6,8.77308369]
[1766083079705,1.2892,2852.4,2851.6,6.01678336]
[1766083079926,1.2892,2852.4,2851.6,9.5235771]
[1766083080435,0.45316191,2852.7,2851.8,0.3596]
[1766083080436,1.73866191,2852.7,2851.8,0.3596]
[1766083080624,1.2818,2852.6,2851.8,0.3596]
[1766083081129,0.45316191,2852.7,2851.8,3.50655059]
[1766083081331,1.2782,2852.7,2851.8,5.66668277]
[1766083081524,1.74258023,2852.7,2851.8,4.8903]
[1766083081703,1.2746,2852.5,2851.2,0.3658]
[1766083081903,0.46438023,2852.6,2851.4,3.50699159]
[1766083081904,1.2746,2852.3,2851.4,3.50699159]
[1766083082105,1.2746,2852.3,2851.6,0.3658]
[1766083082304,1.02638023,2852.7,2851.7,4.5245]
[1766083082602,1.2746,2852.5,2851.7,4.5245]
[1766083082802,1.73898023,2852.5,2851.7,4.5245]
[1766083083031,0.46438023,2852.9,2852.0,0.3658]
[1766083083243,0.562,2852.8,2852.1,0.3658]
[1766083083415,1.2711,2852.8,2852.1,0.3658]
[1766083083602,1.2711,2852.8,2852.1,0.85483]
[1766083083802,0.562,2853.0,2852.2,0.3658]
[1766083084239,1.73198023,2853.1,2852.3,0.3658]
[1766083084240,1.2676,2853.1,2852.3,0.3658]
[1766083084413,0.562,2853.2,2852.4,4.8903]
[1766083084616,1.2641,2853.0,2851.5,0.002]
[1766083084837,0.46438023,2852.7,2851.5,0.002]
[1766083085004,1.2641,2852.5,2851.5,6.14902208]
[1766083085206,1.2641,2852.5,2851.6,0.3658]
[1766083085904,1.2607,2852.3,2851.5,0.002]
[1766083086917,0.95897083,2852.6,2851.9,4.5245]
[1766083087251,1.8193,2853.1,2852.2,4.8903]
[1766083087545,0.18193,2853.0,2852.4,0.3658]
[1766083087753,0.46538023,2853.3,2852.4,4.8903]
[1766083087911,0.563,2853.3,2852.4,4.8903]
[1766083088110,0.001,2853.3,2852.5,0.3658]
[1766083089045,1.2516,2853.3,2852.2,0.562]
[1766083089339,1.2516,2853.3,2852.1,0.3658]
[1766083089542,1.2506,2853.1,2852.1,1.20547016]
[1766083089744,0.562,2853.0,2852.0,4.5245]
[1766083089948,1.2474,2852.9,2851.8,5.0865]
[1766083090102,1.2474,2852.9,2852.0,0.3658]
[1766083090513,1.2474,2852.9,2852.0,3.50625225]
[1766083090740,1.2474,2852.9,2852.1,4.8903]
[1766083091040,1.47477802,2852.9,2852.1,4.8903]
[1766083091404,1.2441,2852.8,2851.7,0.83018023]
[1766083091608,1.2441,2852.8,2851.9,0.3658]
[1766083091848,1.2441,2852.8,2851.7,5.91668023]
[1766083092053,1.2441,2852.8,2851.7,5.55088023]
[1766083092343,1.2441,2852.8,2851.9,8.39667314]
[1766083092544,1.2441,2852.8,2851.9,4.8903]
[1766083092755,0.22737802,2852.9,2852.1,4.588]
[1766083092907,0.22737802,2852.9,2852.3,0.3406]
[1766083093414,0.561,2853.0,2852.3,0.3406]
[1766083093616,0.561,2853.0,2852.4,0.3406]
[1766083093824,0.561,2853.0,2852.4,4.9286]
[1766083094208,6.93538023,2853.3,2852.1,3.50613231]
[1766083094209,1.2315,2853.2,2852.1,3.50613231]
[1766083094415,1.69588023,2853.2,2852.2,4.9286]
[1766083094612,1.2232613,2853.1,2852.2,4.9286]
[1766083094836,2.4516613,2853.1,2852.2,4.9286]
[1766083095319,2.4516613,2853.1,2852.2,8.43464815]
[1766083095529,2.4516613,2853.1,2852.3,0.3406]
[1766083095848,0.46438023,2853.2,2852.4,4.588]
[1766083096046,0.46438023,2853.2,2852.5,0.3406]
[1766083096269,6.471,2853.3,2852.7,0.3406]
[1766083096561,0.001,2853.3,2852.9,0.3406]
[1766083098354,0.001,2853.3,2852.6,0.9016]
[1766083098643,0.001,2853.3,2852.6,5.4896]
[1766083098845,0.001,2853.3,2852.6,10.24526218]
[1766083099238,0.001,2853.3,2851.9,0.405504]
[1766083099439,0.001,2853.3,2851.7,3.58016977]
[1766083099440,1.2166,2853.2,2852.0,5.149]
[1766083099610,1.2166,2853.2,2852.3,3.50593514]
[1766083099817,1.2166,2853.2,2852.4,3.50577261]
[1766083100165,1.2166,2853.2,2852.4,4.9286]
[1766083100386,1.39446,2853.2,2852.4,4.9286]
[1766083100518,1.2147,2853.3,2852.4,0.561]
[1766083100713,1.2147,2853.3,2852.3,0.561]
[1766083101155,4.71947932,2853.3,2852.3,0.561]
[1766083101361,1.2109,2853.1,2851.8,8.99022236]
[1766083101533,1.2109,2852.9,2852.1,3.5061788]
[1766083101861,1.2109,2852.9,2852.0,0.3406]
[1766083102260,1.2109,2852.9,2852.1,3.50617645]
[1766083103339,1.2109,2852.9,2852.0,0.3406]
[1766083103924,1.2109,2852.9,2852.0,4.9286]
[1766083104139,1.43452802,2852.9,2852.0,8.43490159]
[1766083104341,0.561,2853.1,2852.2,0.3406]
[1766083104549,0.001,2853.3,2852.6,4.9286]
[1766083105395,0.001,2853.3,2852.8,4.9286]
[1766083105742,0.001,2853.3,2852.8,0.3406]
[1766083106474,0.001,2853.3,2852.7,0.561]
[1766083106678,0.001,2853.2,2852.7,0.561]
[1766083106841,0.001,2853.2,2852.7,1.46051458]
[1766083107040,0.001,2853.2,2852.7,1.80111458]
[1766083108103,0.001,2853.2,2852.7,6.38911458]
[1766083108315,0.001,2853.2,2853.0,4.588]
[1766083108478,0.001,2853.3,2853.0,4.9286]
[1766083110117,0.001,2853.3,2853.0,0.3406]
[1766083110323,0.001,2853.3,2852.7,9.55389659]
[1766083110324,0.001,2853.3,2852.7,6.04851458]
[1766083110487,0.001,2853.3,2852.8,0.3406]
[1766083111585,0.001,2853.3,2852.8,1.3300548]
[1766083111781,0.001,2853.3,2852.5,0.3406]
[1766083111982,1.1824,2853.3,2852.3,5.149]
[1766083112210,1.1824,2853.3,2852.3,8.65484748]
[1766083112516,1.1824,2853.3,2852.3,8.99544748]
[1766083113513,0.001,2853.3,2852.3,7.57279005]
[1766083113689,0.001,2853.3,2852.5,0.3406]
[1766083114014,1.1774,2853.3,2852.5,0.3406]
[1766083114215,1.1774,2853.3,2852.5,3.846195]
[1766083114389,0.001,2853.3,2852.8,4.588]
[1766083114591,0.001,2853.3,2852.6,0.3406]
[1766083114785,1.68948869,2853.3,2852.5,4.588]
[1766083115214,1.175,2853.3,2852.5,4.588]
[1766083115522,1.175,2853.3,2852.5,8.09368343]
[1766083115723,1.175,2853.3,2852.6,0.3406]
[1766083116322,0.001,2853.3,2852.6,0.3406]
[1766083117228,0.001,2853.3,2852.4,0.75727901]
[1766083117449,1.62338628,2853.3,2852.4,4.60369551]
[1766083118138,1.62338628,2853.3,2852.5,3.50568185]
[1766083118308,1.1702,2853.3,2852.5,3.84628185]
[1766083119140,1.1702,2853.3,2852.5,0.3406]
[1766083119440,1.1702,2853.3,2852.4,8.85103028]
[1766083120437,1.1702,2853.3,2852.6,0.3406]
[1766083120629,0.001,2853.3,2852.9,0.3406]
[1766083120827,0.001,2853.3,2853.0,0.3406]
[1766083121208,0.001,2853.5,2852.7,0.561]
[1766083121209,0.001,2853.5,2853.2,0.3406]
[1766083121846,1.7186,2854.2,2853.4,4.9286]
[1766083122220,0.001,2854.4,2853.7,4.588]
[1766083122429,0.001,2854.4,2854.0,4.588]
[1766083122742,1.1551,2855.1,2853.7,3.96294369]
[1766083123075,1.1551,2855.1,2853.8,4.5308]
[1766083123262,1.1551,2854.7,2853.5,0.561]
[1766083123454,1.1551,2854.5,2853.4,5.0918]
[1766083123658,1.1551,2854.5,2853.5,4.5308]
[1766083123851,1.1551,2854.5,2853.5,3.50439171]
[1766083124048,0.561,2854.6,2853.6,4.5308]
[1766083124451,0.561,2854.6,2853.8,4.5308]
[1766083124755,0.561,2854.6,2853.9,4.8803]
[1766083124956,0.561,2854.6,2854.0,0.3495]
[1766083125149,0.53795601,2855.1,2854.1,0.3495]
[1766083125345,0.46438023,2854.9,2854.1,4.8803]
[1766083125544,1.1508,2854.8,2853.8,0.561]
[1766083125776,0.46438023,2854.9,2853.4,0.561]
[1766083125777,1.1426,2854.4,2853.4,0.561]
[1766083126147,4.0217677,2855.0,2853.5,4.5308]
[1766083126368,3.96722669,2854.9,2853.7,4.5308]
[1766083126672,3.96722669,2854.9,2853.9,4.5308]
[1766083126673,0.56289445,2854.8,2853.9,4.5308]
[1766083127575,0.56289445,2854.8,2854.0,0.3495]
[1766083127751,4.4861726,2855.0,2854.4,0.3495]
[1766083127752,0.51911778,2855.0,2854.4,0.3495]
[1766083127946,0.46438023,2855.1,2854.4,1e-08]
[1766083128177,5.65408644,2855.3,2853.9,4.5308]
[1766083128381,4.52768644,2855.3,2854.0,3.50385423]
[1766083128581,1.1264,2855.2,2854.1,4.5308]
[1766083128961,4.52768644,2855.3,2854.3,4.5308]
[1766083128962,0.561,2855.3,2854.3,4.5308]
[1766083129178,0.561,2855.3,2854.3,5.03998]
[1766083129589,0.001,2854.8,2854.3,5.03998]
[1766083129988,0.001,2854.8,2854.3,0.561]
[1766083130192,0.001,2854.8,2854.2,0.561]
[1766083130358,0.001,2854.8,2854.3,0.3495]
[1766083131385,0.001,2854.8,2854.4,4.5308]
[1766083131584,0.561,2855.3,2854.6,4.8803]
[1766083131974,2.12068023,2855.3,2854.2,3.50359167]
[1766083132188,2.12068023,2855.3,2854.0,4.06481464]
[1766083132189,1.0953,2855.1,2854.3,0.561]
[1766083132566,1.0953,2855.1,2854.0,4.5308]
[1766083132899,1.55968023,2855.1,2854.1,4.8803]
[1766083133101,0.46438023,2855.1,2854.1,4.8803]
[1766083133257,1.0877,2855.0,2854.1,4.8803]
[1766083133991,0.46438023,2855.1,2853.9,4.5308]
[1766083134193,1.0803,2855.0,2854.0,8.38413816]
[1766083134424,1.0803,2855.0,2854.0,8.3841334]
[1766083134583,0.50471907,2854.9,2854.0,8.3841334]
[1766083134979,0.561,2854.9,2854.1,0.3495]
[1766083135574,1.6266,2854.9,2854.1,0.3495]
[1766083135774,0.561,2854.9,2854.2,0.3495]
[1766083136013,0.561,2854.9,2854.3,0.3495]
[1766083136712,0.561,2854.9,2854.3,3.85294737]
[1766083136917,0.561,2855.4,2854.4,4.5308]
[1766083137073,0.561,2855.4,2854.5,0.3495]
[1766083137074,2.02340092,2855.4,2854.5,0.3495]
[1766083137278,2.02340092,2855.4,2854.5,4.8803]
[1766083137690,2.01630092,2855.4,2854.5,0.3495]
[1766083137979,9.86166586,2856.2,2854.9,0.3495]
[1766083137980,1.0513,2855.7,2854.9,0.3495]
[1766083138679,1.0513,2855.7,2854.9,4.8803]
[1766083138885,1.0513,2855.7,2854.9,0.3495]
[1766083139108,1.0513,2855.7,2854.6,0.561]
[1766083139109,1.0442,2855.6,2854.6,5.4413]
[1766083139574,1.0442,2855.6,2854.6,0.3495]
[1766083140371,0.001,2855.7,2854.9,7.005469]
[1766083140619,0.001,2855.7,2854.8,0.3495]
[1766083140902,1.0303,2855.6,2854.5,4.0641777]
[1766083141500,1.0303,2855.6,2854.4,0.3495]
[1766083141701,1.0303,2855.6,2854.3,4.5328]
[1766083141702,1.0303,2855.6,2854.3,0.002]
[1766083141921,30.0,2855.1,2853.5,3.50446819]
[1766083142123,10.53795601,2855.4,2853.1,3.506947]
[1766083142124,30.0,2854.8,2853.1,3.506947]
[1766083142327,1.0148,2854.6,2853.2,0.3598]
[1766083142518,0.46438023,2854.9,2853.1,4.7936]
[1766083142519,1.0148,2854.2,2853.1,4.7936]
[1766083142697,1.0148,2854.2,2853.1,8.6582505]
[1766083142898,1.0082,2854.0,2853.1,0.002]
[1766083143127,1.0082,2853.9,2852.7,3.50544484]
[1766083143426,1.0082,2853.9,2852.5,9.1321696]
[1766083143427,1.0082,2853.9,2852.6,3.86536051]
[1766083143724,1.0082,2853.9,2852.7,8.6567819]
[1766083143925,1.0082,2853.9,2852.8,0.3598]
[1766083144225,1.0082,2853.9,2852.6,1.01783902]
[1766083144519,1.0082,2853.9,2852.6,1.37763902]
[1766083144719,0.9931,2853.8,2852.6,9.67478508]
[1766083145026,0.405504,2853.7,2852.6,0.3598]
[1766083145191,0.9931,2853.4,2852.5,0.002]
[1766083145547,0.9931,2853.2,2852.5,0.002]
[1766083145724,0.9931,2853.2,2852.4,0.002]
[1766083146108,0.9931,2853.2,2852.0,0.002]
[1766083146624,0.9803,2852.9,2852.0,0.002]
[1766083146824,0.9803,2852.9,2852.0,0.3888316]
[1766083147230,0.46438023,2853.1,2851.5,0.3618]
[1766083147231,0.9803,2852.7,2851.5,0.3618]
[1766083147399,0.9803,2853.2,2852.0,5.1514]
[1766083147599,0.974,2852.9,2851.8,3.50653354]
[1766083148043,0.974,2852.9,2851.9,5.1514]
[1766083148230,0.974,2852.9,2851.9,6.42394908]
[1766083148399,0.974,2852.9,2851.9,1.27254908]
[1766083148601,0.974,2852.9,2851.8,3.50653354]
[1766083149099,0.974,2852.9,2851.8,12.1644908]
[1766083149301,0.974,2852.9,2851.8,7.0130908]
[1766083149497,0.46438023,2853.2,2852.0,5.1514]
[1766083149701,0.9678,2853.1,2852.0,0.9208]
[1766083150401,0.9678,2853.1,2852.0,1.71418908]
[1766083150802,0.9557,2853.0,2852.0,5.22049871]
[1766083150999,0.9557,2853.0,2852.0,1.71418908]
[1766083151234,0.9557,2852.9,2852.0,4.86068152]
[1766083151634,0.9497,2852.7,2851.7,0.3598]
[1766083151823,0.9497,2852.7,2851.5,0.563]
[1766083152030,0.9497,2852.7,2851.6,3.50680094]
[1766083152340,0.9497,2852.7,2851.6,5.1514]
[1766083152505,0.9497,2852.7,2851.7,3.50661366]
[1766083152701,0.9497,2852.7,2851.6,3.86652822]
[1766083152937,1.02538023,2852.8,2851.6,3.86652822]
[1766083152938,0.9379,2852.5,2851.6,3.86652822]
[1766083154138,0.9379,2852.5,2851.5,0.002]
[1766083154343,0.46438023,2852.3,2851.3,0.002]
[1766083154541,0.19750802,2852.6,2851.3,3.8751656]
[1766083154542,0.561,2852.2,2851.3,3.8751656]
[1766083154751,1.332004,2853.0,2852.0,0.366]
[1766083155032,1.4875,2852.8,2852.0,0.366]
[1766083155243,0.9265,2852.7,2851.7,0.366]
[1766083155544,0.9265,2852.7,2851.7,3.87260132]
[1766083155847,0.9265,2852.7,2851.7,8.51782313]
[1766083156007,0.9208,2853.1,2852.0,5.0112]
[1766083156348,0.9208,2853.1,2852.1,0.366]
[1766083156507,0.9208,2853.1,2852.2,5.0112]
[1766083156707,0.9152,2853.0,2852.0,5.0112]
[1766083156922,0.9152,2853.0,2852.1,0.90786343]
[1766083157632,0.9152,2853.0,2852.2,0.366]
[1766083157828,1.4717,2853.2,2852.2,5.0112]
[1766083158050,1.4717,2853.2,2852.3,5.0112]
[1766083158242,0.9097,2853.1,2852.1,0.90786343]
[1766083158427,0.9097,2853.0,2852.1,0.90786343]
[1766083158629,0.9097,2852.9,2851.9,4.06737005]
[1766083158854,1.4662,2853.2,2852.1,4.6452]
[1766083159058,0.9042,2853.1,2852.1,5.0112]
[1766083161357,0.001,2853.2,2852.4,5.0112]
[1766083161655,0.001,2853.2,2852.1,7.01237684]
[1766083161656,0.001,2853.2,2852.7,5.0112]
[1766083162032,0.001,2853.2,2852.5,0.86712]
[1766083162220,0.001,2853.2,2852.5,5.0112]
[1766083162428,0.001,2853.2,2852.8,0.366]
[1766083163346,0.001,2853.2,2852.8,3.87129126]
[1766083163653,0.8788,2854.1,2853.1,4.6452]
[1766083163833,0.8788,2853.9,2853.1,4.6452]
[1766083164036,0.8788,2853.9,2853.0,0.366]
[1766083164228,1.06921802,2853.9,2853.0,0.366]
[1766083164762,1.06921802,2853.9,2852.8,11.65581935]
[1766083164919,1.06921802,2853.9,2852.8,12.02181935]
[1766083165125,1.06921802,2853.9,2853.0,5.0112]
[1766083165727,1.06921802,2853.9,2853.1,5.0112]
[1766083167468,0.8637,2853.7,2852.8,0.366]
[1766083167761,0.8588,2853.6,2852.9,0.561]
[1766083168255,0.8588,2853.6,2852.9,3.50519706]
[1766083168457,0.8588,2853.6,2852.8,3.50531832]
[1766083168650,0.8588,2853.6,2852.7,5.5722]
[1766083168827,0.8588,2853.6,2852.7,9.07759053]
[1766083169024,0.8598,2853.6,2852.7,6.26951311]
[1766083169229,0.8598,2853.6,2852.7,0.927]
[1766083169452,0.8598,2853.6,2852.4,8.1509216]
[1766083169453,0.8539,2853.4,2852.4,8.71191615]
[1766083169631,0.8539,2853.4,2852.2,0.366]
[1766083170143,0.8539,2853.4,2852.1,3.50612449]
[1766083170859,0.8539,2853.4,2852.2,3.50604014]
[1766083171033,0.8444,2853.2,2852.2,3.50604014]
[1766083171534,0.8444,2853.2,2852.1,3.87218842]
[1766083172265,0.8397,2853.1,2852.1,3.87218842]
[1766083172560,1.4007,2853.0,2852.1,7.01237684]
[1766083172742,0.561,2853.0,2852.5,5.0112]
[1766083172941,0.561,2853.0,2852.6,0.366]
[1766083173829,0.8351,2853.4,2852.6,0.366]
[1766083174038,0.561,2853.3,2852.6,8.51676299]
[1766083174240,0.74704802,2853.3,2852.6,5.0112]
[1766083174636,0.74704802,2853.3,2852.7,5.0112]
[1766083176850,0.74804802,2853.3,2852.7,5.0112]
[1766083177051,0.74804802,2853.3,2852.4,0.927]
[1766083177358,0.817,2853.2,2852.3,3.50593113]
[1766083177566,0.817,2853.1,2852.3,3.50585325]
[1766083177866,0.817,2853.1,2852.2,7.01213098]
[1766083178363,0.817,2853.1,2852.2,12.02333098]
[1766083178772,0.561,2853.2,2852.5,4.6452]
[1766083178947,0.561,2853.2,2852.6,0.366]
[1766083179464,0.561,2853.2,2852.6,5.0112]
[1766083179667,0.561,2853.2,2852.8,5.0112]
[1766083180170,0.001,2853.3,2852.8,5.0112]
[1766083180536,0.001,2853.3,2852.8,0.366]
[1766083182080,0.001,2853.3,2852.6,0.55722]
[1766083182877,0.7875,2853.1,2852.1,4.329]
[1766083183039,0.7875,2853.1,2852.1,4.6784]
[1766083183638,0.7875,2853.1,2852.1,8.18449177]
[1766083184167,0.7875,2853.1,2852.2,3.5060516]
[1766083184372,0.7875,2853.1,2852.1,8.18453249]
[1766083184568,0.7875,2853.1,2852.1,3.50613249]
[1766083184768,0.7875,2853.1,2852.0,3.97260489]
[1766083184973,0.7875,2853.1,2851.5,3.50888198]
[1766083184974,0.86988423,2852.8,2851.5,0.002]
[1766083185179,0.46438023,2852.6,2851.5,3.50892528]
[1766083185352,0.561,2852.7,2851.5,3.50892528]
[1766083185561,0.561,2852.7,2851.5,0.002]
[1766083186501,0.001,2853.3,2851.5,0.002]
[1766083186502,3.699,2854.4,2852.7,4.6784]
[1766083186797,0.001,2854.4,2853.2,0.405504]
[1766083186940,0.001,2854.5,2853.7,0.46438023]
[1766083187141,0.001,2854.5,2853.8,0.47933802]
[1766083187344,1.66206815,2854.5,2853.7,0.46438023]
[1766083187577,0.001,2854.5,2853.8,4.329]
[1766083187898,0.001,2854.5,2854.2,4.6784]
[1766083188120,0.561,2855.2,2854.2,4.6784]
[1766083188379,3.50255247,2855.1,2853.8,3.50409979]
[1766083188581,0.46438023,2855.0,2853.8,4.32234977]
[1766083188877,0.46438023,2855.0,2853.8,8.65134977]
[1766083189079,0.46438023,2855.0,2853.8,5.14724998]
[1766083189380,0.46438023,2855.1,2853.8,5.14724998]
[1766083189580,10.46438023,2855.1,2853.8,5.14724998]
[1766083190439,0.561,2855.2,2853.9,3.50397701]
[1766083190671,0.46438023,2855.1,2853.9,3.50397701]
[1766083192172,30.0,2854.7,2853.3,0.3494]
[1766083192414,3.5611,2854.6,2853.4,0.46438023]
[1766083192610,3.5611,2854.6,2852.4,3.54081664]
[1766083192611,30.0,2854.5,2852.8,0.3494]
[1766083192792,30.0,2854.5,2853.3,0.46438023]
[1766083193120,30.0,2854.5,2853.3,3.50471159]
[1766083193409,30.0,2854.5,2853.1,4.53033865]
[1766083193410,30.0,2854.5,2853.4,3.50458229]
[1766083193712,0.561,2854.6,2853.4,3.50458229]
[1766083193879,0.561,2854.6,2853.4,4.63840791]
[1766083193880,0.41376481,2854.5,2853.4,4.63840791]
[1766083194084,0.87814504,2854.5,2853.4,1.13382562]
[1766083194271,0.87814504,2854.5,2853.4,4.63831571]
[1766083194272,0.41376481,2854.5,2853.4,4.63831571]
[1766083194471,0.87814504,2854.5,2853.4,1.13382562]
[1766083194672,0.49422642,2854.4,2853.5,4.6784]
[1766083195203,0.41376481,2854.5,2853.5,4.6784]
[1766083195523,0.46438023,2854.6,2853.6,0.3494]
[1766083195673,0.561,2854.6,2853.7,4.6784]
[1766083196108,0.001,2854.8,2853.8,0.3494]
[1766083196402,0.001,2854.8,2854.3,4.6784]
[1766083197775,0.001,2854.8,2853.6,4.329]
[1766083198004,14.134,2854.6,2853.4,8.18297675]
[1766083198254,0.561,2854.7,2853.8,0.3494]
[1766083198255,0.46438023,2854.7,2853.8,0.3494]
[1766083198558,0.561,2854.6,2853.8,4.6784]
[1766083199434,0.001,2854.8,2854.0,4.329]
[1766083199934,0.001,2854.8,2853.9,0.9104]
[1766083200124,0.001,2854.8,2853.9,6.11374951]
[1766083200334,0.001,2854.8,2854.0,4.36403854]
[1766083200530,0.001,2854.8,2854.4,4.6784]
[1766083200847,0.001,2854.8,2853.8,0.46438023]
[1766083201148,0.001,2854.8,2853.3,0.405504]
[1766083201149,0.46438023,2854.4,2853.5,0.002]
[1766083201337,0.82283802,2854.3,2853.5,0.002]
[1766083201534,0.561,2854.3,2853.5,0.002]
[1766083202142,0.561,2854.3,2853.1,1.02538023]
[1766083202346,0.561,2854.3,2853.2,3.5048319]
[1766083202535,0.561,2854.3,2853.3,4.7266]
[1766083202850,0.561,2854.3,2853.4,0.357]
[1766083203052,0.07357578,2854.7,2853.4,4.3696]
[1766083203231,0.07357578,2854.7,2853.8,4.7266]
[1766083203232,0.561,2854.7,2853.8,4.7266]
[1766083203654,0.001,2854.8,2854.0,4.3696]
[1766083203850,0.562,2854.8,2853.9,4.7266]
[1766083204048,0.562,2854.8,2853.9,4.3696]
[1766083204244,0.46438023,2854.7,2853.4,0.561]
[1766083204453,0.45292581,2854.6,2853.4,0.561]
[1766083204832,30.94346001,2854.5,2853.1,4.7266]
[1766083205033,0.94346001,2854.5,2853.1,4.7266]
[1766083205261,0.46438023,2854.3,2853.2,3.50476364]
[1766083205560,0.561,2854.2,2853.2,3.50476364]
[1766083205859,0.561,2854.2,2853.1,4.7266]
[1766083206247,0.561,2854.2,2853.1,4.3696]
[1766083206446,0.561,2854.2,2853.2,4.7266]
[1766083206838,0.561,2854.2,2853.2,8.23139684]
[1766083207036,0.561,2854.2,2853.4,0.357]
[1766083207631,7.56822018,2854.2,2852.9,4.7266]
[1766083207831,0.46438023,2853.7,2852.6,0.002]
[1766083208170,0.07357578,2853.1,2851.7,4.3696]
[1766083208461,0.07357578,2853.1,2852.0,0.002]
[1766083208636,0.561,2853.0,2852.0,4.3716]
[1766083208837,0.561,2853.0,2852.1,8.23271418]